fUST/lending_fUST_20240618
["ID","MTS","AMOUNT","RATE_DAILY","PERIOD"]
[329776113,1718662258031,-500.0,0.00017808,2]
[329776114,1718662258040,-500.0,0.00017808,2]
[329776115,1718662258050,-500.0,0.00017808,2]
[329776116,1718662258059,-1240.65,0.00017808,2]
[329776117,1718662258068,-500.0,0.00017808,2]
[329776118,1718662258078,-500.0,0.00017808,2]
[329776119,1718662258087,-500.0,0.00017808,2]
[329776120,1718662258096,-500.0,0.00017808,2]
[329776121,1718662258105,-604.82,0.00017808,2]
[329776122,1718662258114,-500.0,0.00017808,2]
[329776123,1718662258217,-500.0,0.00017808,2]
[329776124,1718662258227,-500.0,0.00017808,2]
[329776125,1718662258237,-2395.18,0.00017808,2]
[329776126,1718662258246,-500.0,0.00017979,2]
[329776127,1718662258255,-500.0,0.00017979,2]
[329776128,1718662258265,-500.0,0.00017979,2]
[329776129,1718662258275,-291.36493378,0.00017979,2]
[329776130,1718662258285,-500.0,0.00017979,2]
[329776131,1718662258294,-500.0,0.00017979,2]
[329776132,1718662258304,-500.0,0.00017979,2]
[329776133,1718662258313,-871.31,0.00017979,2]
[329776134,1718662258323,-500.0,0.00017979,2]
[329776135,1718662258333,-500.0,0.00017979,2]
[329776136,1718662258342,-500.0,0.00017979,2]
[329776137,1718662258351,-1150.1,0.00017992,2]
[329776138,1718662258361,-184.6,0.00017992,2]
[329776139,1718662258373,-825.23441337,0.00018,2]
[329776140,1718662258383,-20000.0,0.00018081,2]
[329776141,1718662258392,-500.0,0.00018082,2]
[329776142,1718662258402,-500.0,0.00018082,2]
[329776143,1718662258412,-500.0,0.00018082,2]
[329776144,1718662258422,-500.0,0.00018082,2]
[329776145,1718662258431,-500.0,0.00018082,2]
[329776146,1718662258441,-500.0,0.00018082,2]
[329776147,1718662258452,-500.0,0.00018082,2]
[329776148,1718662258462,-500.0,0.00018082,2]
[329776149,1718662258471,-500.0,0.00018082,2]
[329776150,1718662258480,-2487.73,0.00018082,2]
[329776151,1718662258489,-500.0,0.00018082,2]
[329776152,1718662258499,-500.0,0.00018082,2]
[329776153,1718662258508,-500.0,0.00018082,2]
[329776154,1718662258518,-500.0,0.00018082,2]
[329776155,1718662258527,-500.0,0.00018082,2]
[329776156,1718662258536,-154.52675791,0.00018082,2]
[329776157,1718662258545,-500.0,0.00018082,2]
[329776158,1718662258554,-500.0,0.00018082,2]
[329776159,1718662258564,-500.0,0.00018082,2]
[329776160,1718662258573,-500.0,0.00018082,2]
[329776161,1718662258584,-500.0,0.00018082,2]
[329776162,1718662258593,-500.0,0.00018082,2]
[329776163,1718662258602,-384.50437176,0.00018082,2]
[329776164,1718662258612,-500.0,0.00018082,2]
[329776165,1718662258621,-780.92,0.00018082,2]
[329776166,1718662258631,-1867.13,0.00018082,2]
[329776167,1718662258640,-500.0,0.00018082,2]
[329776168,1718662258649,-803.31,0.00018082,2]
[329776169,1718662258659,-1463.9,0.00018082,2]
[329776170,1718662258668,-500.0,0.00018082,2]
[329776171,1718662258678,-500.0,0.00018082,2]
[329776172,1718662258687,-500.0,0.00018082,2]
[329776173,1718662258696,-500.0,0.00018082,2]
[329776174,1718662258705,-1518.45,0.00018082,2]
[329776175,1718662258715,-1355.51,0.00018082,2]
[329776176,1718662258723,-500.0,0.00018082,2]
[329776177,1718662258733,-500.0,0.00018082,2]
[329776178,1718662258742,-500.0,0.00018082,2]
[329776179,1718662258751,-500.0,0.00018082,2]
[329776180,1718662258760,-500.0,0.00018082,2]
[329776181,1718662258769,-500.0,0.00018082,2]
[329776182,1718662258778,-500.0,0.00018082,2]
[329776183,1718662258788,-500.0,0.00018082,2]
[329776184,1718662258797,-3634.11,0.00018082,2]
[329776185,1718662258806,-2089.52,0.00018082,2]
[329776186,1718662258816,-500.0,0.00018082,2]
[329776187,1718662258825,-500.0,0.00018082,2]
[329776188,1718662258836,-500.0,0.00018082,2]
[329776189,1718662258846,-500.0,0.00018082,2]
[329776190,1718662258855,-500.0,0.00018082,2]
[329776191,1718662258865,-500.0,0.00018082,2]
[329776192,1718662258875,-500.0,0.00018082,2]
[329776193,1718662258884,-749.55,0.00018082,2]
[329776194,1718662258894,-500.0,0.00018082,2]
[329776195,1718662258904,-156.41270337,0.00018082,2]
[329776196,1718662258914,-500.0,0.00018082,2]
[329776197,1718662258923,-500.0,0.00018082,2]
[329776198,1718662258932,-580.43,0.00018082,2]
[329776199,1718662258942,-505.92783357,0.00018082,2]
[329776200,1718662258951,-500.0,0.00018082,2]
[329776201,1718662258961,-500.0,0.00018082,2]
[329776202,1718662258971,-1240.65,0.00018082,2]
[329776203,1718662258980,-500.0,0.00018082,2]
[329776204,1718662258990,-500.0,0.00018082,2]
[329776205,1718662258999,-500.0,0.00018082,2]
[329776206,1718662259008,-500.0,0.00018082,2]
[329776207,1718662259018,-604.82,0.00018082,2]
[329776208,1718662259027,-372.1339711,0.00018082,2]
[329776209,1718662259036,-500.0,0.00018082,2]
[329776210,1718662259046,-471.00300013,0.00018082,2]
[329776211,1718662259055,-2395.18,0.00018082,2]
[329776212,1718662259064,-500.0,0.00018253,2]
[329776213,1718662259073,-511.92094895,0.00018253,2]
[329776214,1718662259085,-500.0,0.00018253,2]
[329776215,1718662259094,-500.0,0.00018253,2]
[329776216,1718662259103,-500.0,0.00018253,2]
[329776217,1718662259112,-871.31,0.00018253,2]
[329776218,1718662259121,-500.0,0.00018253,2]
[329776219,1718662259131,-500.0,0.00018253,2]
[329776220,1718662259140,-500.0,0.00018253,2]
[329776221,1718662259149,-500.0,0.00018356,2]
[329776222,1718662259159,-500.0,0.00018356,2]
[329776223,1718662259169,-500.0,0.00018356,2]
[329776224,1718662259178,-500.0,0.00018356,2]
[329776225,1718662259187,-511.72813009,0.00018356,2]
[329776226,1718662259197,-500.0,0.00018356,2]
[329776227,1718662259206,-500.0,0.00018356,2]
[329776228,1718662259216,-523.72699357,0.00018356,2]
[329776229,1718662259225,-500.0,0.00018356,2]
[329776230,1718662259235,-2487.73,0.00018356,2]
[329776231,1718662259244,-500.0,0.00018356,2]
[329776232,1718662259254,-500.0,0.00018356,2]
[329776233,1718662259263,-500.0,0.00018356,2]
[329776234,1718662259272,-500.0,0.00018356,2]
[329776235,1718662259282,-500.0,0.00018356,2]
[329776236,1718662259291,-500.0,0.00018356,2]
[329776237,1718662259300,-500.0,0.00018356,2]
[329776238,1718662259310,-500.0,0.00018356,2]
[329776239,1718662259319,-500.0,0.00018356,2]
[329776240,1718662259328,-500.0,0.00018356,2]
[329776241,1718662259337,-500.0,0.00018356,2]
[329776242,1718662259346,-500.0,0.00018356,2]
[329776243,1718662259355,-780.92,0.00018356,2]
[329776244,1718662259365,-1867.13,0.00018356,2]
[329776245,1718662259378,-500.0,0.00018356,2]
[329776246,1718662259387,-803.31,0.00018356,2]
[329776247,1718662259398,-1463.9,0.00018356,2]
[329776248,1718662259407,-500.0,0.00018356,2]
[329776249,1718662259418,-500.0,0.00018356,2]
[329776250,1718662259427,-500.0,0.00018356,2]
[329776251,1718662259437,-500.0,0.00018356,2]
[329776252,1718662259446,-1518.45,0.00018356,2]
[329776253,1718662259457,-1355.51,0.00018356,2]
[329776254,1718662259467,-500.0,0.00018356,2]
[329776255,1718662259476,-500.0,0.00018356,2]
[329776256,1718662259485,-500.0,0.00018356,2]
[329776257,1718662259494,-500.0,0.00018356,2]
[329776258,1718662259503,-411.06536293,0.00018356,2]
[329776259,1718662259512,-500.0,0.00018356,2]
[329776260,1718662259522,-500.0,0.00018356,2]
[329776261,1718662259531,-500.0,0.00018356,2]
[329776262,1718662259540,-3634.11,0.00018356,2]
[329776263,1718662259549,-2089.52,0.00018356,2]
[329776264,1718662259559,-577.12778958,0.00018356,2]
[329776265,1718662259567,-500.0,0.00018356,2]
[329776266,1718662259578,-500.0,0.00018356,2]
[329776267,1718662259587,-500.0,0.00018356,2]
[329776268,1718662259596,-500.0,0.00018356,2]
[329776269,1718662259605,-500.0,0.00018356,2]
[329776270,1718662259614,-500.0,0.00018356,2]
[329776271,1718662259623,-749.55,0.00018356,2]
[329776272,1718662259633,-500.0,0.00018356,2]
[329776273,1718662259643,-500.0,0.00018356,2]
[329776274,1718662259652,-500.0,0.00018356,2]
[329776275,1718662259661,-580.43,0.00018356,2]
[329776276,1718662259671,-500.0,0.00018356,2]
[329776277,1718662259680,-500.0,0.00018356,2]
[329776278,1718662259689,-1240.65,0.00018356,2]
[329776279,1718662259698,-500.0,0.00018356,2]
[329776280,1718662259708,-500.0,0.00018356,2]
[329776281,1718662259716,-500.0,0.00018356,2]
[329776282,1718662259726,-500.0,0.00018356,2]
[329776283,1718662259735,-604.82,0.00018356,2]
[329776284,1718662259744,-500.0,0.00018356,2]
[329776285,1718662259753,-2395.18,0.00018356,2]
[329776286,1718662259762,-1150.1,0.00018481,2]
[329776287,1718662259772,-184.6,0.00018481,2]
[329776288,1718662259781,-500.0,0.00018527,2]
[329776289,1718662259790,-500.0,0.00018527,2]
[329776290,1718662259800,-500.0,0.00018527,2]
[329776291,1718662259809,-871.31,0.00018527,2]
[329776292,1718662259818,-500.0,0.00018527,2]
[329776293,1718662259828,-500.0,0.00018527,2]
[329776294,1718662259837,-500.0,0.00018527,2]
[329776295,1718662259846,-253.48524119,0.0001863,2]
[329776296,1718662259855,-500.0,0.0001863,2]
[329776297,1718662259864,-500.0,0.0001863,2]
[329776298,1718662259873,-609.09074163,0.0001863,2]
[329776299,1718662259883,-500.0,0.0001863,2]
[329776300,1718662259892,-500.0,0.0001863,2]
[329776301,1718662259901,-2487.73,0.0001863,2]
[329776302,1718662259910,-224.44942684,0.0001863,2]
[329776303,1718662259920,-500.0,0.0001863,2]
[329776304,1718662259929,-592.40207975,0.0001863,2]
[329776305,1718662259938,-500.0,0.0001863,2]
[329776306,1718662259948,-500.0,0.0001863,2]
[329776307,1718662259957,-500.0,0.0001863,2]
[329776308,1718662259967,-500.0,0.0001863,2]
[329776309,1718662259976,-500.0,0.0001863,2]
[329776310,1718662259985,-500.0,0.0001863,2]
[329776311,1718662259994,-500.0,0.0001863,2]
[329776312,1718662260004,-600.49144587,0.0001863,2]
[329776313,1718662260014,-780.92,0.0001863,2]
[329776314,1718662260023,-1867.13,0.0001863,2]
[329776315,1718662260033,-500.0,0.0001863,2]
[329776316,1718662260043,-803.31,0.0001863,2]
[329776317,1718662260052,-1463.9,0.0001863,2]
[329776318,1718662260061,-500.0,0.0001863,2]
[329776319,1718662260070,-500.0,0.0001863,2]
[329776320,1718662260081,-500.0,0.0001863,2]
[329776321,1718662260090,-1518.45,0.0001863,2]
[329776322,1718662260100,-1355.51,0.0001863,2]
[329776323,1718662260109,-500.0,0.0001863,2]
[329776324,1718662260118,-500.0,0.0001863,2]
[329776325,1718662260127,-500.0,0.0001863,2]
[329776326,1718662260136,-500.0,0.0001863,2]
[329776327,1718662260146,-3634.11,0.0001863,2]
[329776328,1718662260155,-2089.52,0.0001863,2]
[329776329,1718662260164,-500.0,0.0001863,2]
[329776330,1718662260172,-500.0,0.0001863,2]
[329776331,1718662260181,-500.0,0.0001863,2]
[329776332,1718662260190,-615.42346291,0.0001863,2]
[329776333,1718662260200,-749.55,0.0001863,2]
[329776334,1718662260210,-580.43,0.0001863,2]
[329776335,1718662260219,-500.0,0.0001863,2]
[329776336,1718662260229,-500.0,0.0001863,2]
[329776337,1718662260239,-1240.65,0.0001863,2]
[329776338,1718662260248,-500.0,0.0001863,2]
[329776339,1718662260258,-500.0,0.0001863,2]
[329776340,1718662260351,-604.82,0.0001863,2]
[329776341,1718662260361,-2395.18,0.0001863,2]
[329776342,1718662260374,-250.0,0.0001863,2]
[329776343,1718662260383,-1033.33915206,0.000188,2]
[329776344,1718662260393,-500.0,0.00018801,2]
[329776345,1718662260403,-500.0,0.00018801,2]
[329776346,1718662260413,-500.0,0.00018801,2]
[329776347,1718662260423,-871.31,0.00018801,2]
[329776348,1718662260432,-500.0,0.00018801,2]
[329776349,1718662260441,-500.0,0.00018801,2]
[329776350,1718662260454,-500.0,0.00018801,2]
[329776351,1718662260463,-5804.28694101,0.000189,2]
[329776352,1718662260472,-500.0,0.00018904,2]
[329776353,1718662260482,-500.0,0.00018904,2]
[329776354,1718662260491,-2487.73,0.00018904,2]
[329776355,1718662260501,-176.11462718,0.00018904,2]
[329776356,1718662260509,-500.0,0.00018904,2]
[329776357,1718662260518,-500.0,0.00018904,2]
[329776358,1718662260527,-500.0,0.00018904,2]
[329776359,1718662260537,-500.0,0.00018904,2]
[329776360,1718662260546,-500.0,0.00018904,2]
[329776361,1718662260555,-500.0,0.00018904,2]
[329776362,1718662260564,-780.92,0.00018904,2]
[329776363,1718662260574,-1867.13,0.00018904,2]
[329776364,1718662260584,-500.0,0.00018904,2]
[329776365,1718662260593,-803.31,0.00018904,2]
[329776366,1718662260602,-1463.9,0.00018904,2]
[329776367,1718662260611,-500.0,0.00018904,2]
[329776368,1718662260620,-288.32,0.00018904,2]
[329776369,1718662260630,-1518.45,0.00018904,2]
[329776370,1718662260639,-1355.51,0.00018904,2]
[329776371,1718662260649,-500.0,0.00018904,2]
[329776372,1718662260658,-525.18777761,0.00018904,2]
[329776373,1718662260667,-500.0,0.00018904,2]
[329776374,1718662260677,-309.5462212,0.00018904,2]
[329776375,1718662260686,-3634.11,0.00018904,2]
[329776376,1718662260696,-2089.52,0.00018904,2]
[329776377,1718662260705,-500.0,0.00018904,2]
[329776378,1718662260715,-500.0,0.00018904,2]
[329776379,1718662260725,-500.0,0.00018904,2]
[329776380,1718662260734,-749.55,0.00018904,2]
[329776381,1718662260743,-580.43,0.00018904,2]
[329776382,1718662260752,-500.0,0.00018904,2]
[329776383,1718662260762,-1240.65,0.00018904,2]
[329776384,1718662260772,-500.0,0.00018904,2]
[329776385,1718662260781,-604.82,0.00018904,2]
[329776386,1718662260790,-2395.18,0.00018904,2]
[329776387,1718662260799,-1150.1,0.00018971,2]
[329776388,1718662260809,-184.6,0.00018971,2]
[329776389,1718662260818,-308.52216,0.00018986,2]
[329776390,1718662260827,-782.92587931,0.00018995,2]
[329776391,1718662260837,-500.0,0.00019075,2]
[329776392,1718662260846,-871.31,0.00019075,2]
[329776393,1718662260855,-500.0,0.00019075,2]
[329776394,1718662260864,-500.0,0.00019178,2]
[329776395,1718662260874,-500.0,0.00019178,2]
[329776396,1718662260883,-319.82815104,0.00019178,2]
[329776397,1718662260892,-500.0,0.00019178,2]
[329776398,1718662260902,-500.0,0.00019178,2]
[329776399,1718662260911,-500.0,0.00019178,2]
[329776400,1718662260920,-500.0,0.00019178,2]
[329776401,1718662260929,-500.0,0.00019178,2]
[329776402,1718662260938,-500.0,0.00019178,2]
[329776403,1718662260947,-470.88574434,0.00019178,2]
[329776404,1718662260957,-500.0,0.00019178,2]
[329776405,1718662260967,-414.29261931,0.00019178,2]
[329776406,1718662260976,-500.0,0.00019178,2]
[329776407,1718662260985,-500.0,0.00019178,2]
[329776408,1718662260995,-374.44705189,0.00019178,2]
[329776409,1718662261004,-197.66979882,0.00019178,2]
[329776410,1718662261014,-500.0,0.00019178,2]
[329776411,1718662261023,-500.0,0.00019178,2]
[329776412,1718662261032,-500.0,0.00019178,2]
[329776413,1718662261042,-500.0,0.00019178,2]
[329776414,1718662261051,-500.0,0.00019178,2]
[329776415,1718662261060,-500.0,0.00019178,2]
[329776416,1718662261069,-480.05608767,0.00019178,2]
[329776417,1718662261080,-595.05137752,0.00019178,2]
[329776418,1718662261090,-500.0,0.00019178,2]
[329776419,1718662261100,-452.2476043,0.00019178,2]
[329776420,1718662261218,-47.7523957,0.00019178,2]
[329776421,1718662261228,-500.0,0.00019178,2]
[329776422,1718662261237,-370.89473577,0.00019178,2]
[329776423,1718662261248,-129.10526423,0.00019178,2]
[329776424,1718662261258,-500.0,0.00019178,2]
[329776425,1718662261268,-100.34669148,0.00019178,2]
[329776426,1718662319050,154.93802479,9.999e-05,2]
[329776428,1718663141135,-521.10738578,9.999e-05,2]
[329776429,1718663141157,-199.47535587,0.00012327,2]
[329776430,1718663141179,-172.751331,0.00013968,2]
[329776431,1718663141200,-659.22490879,0.00014635,2]
[329776432,1718663141221,-155.0309938,0.00014636,2]
[329776433,1718663141242,-912.68055861,0.00014637,2]
[329776434,1718663240100,-269.05544481,0.00014636,2]
[329776435,1718663240122,-1183.38628805,0.00014637,2]
[329776477,1718663433126,-22803.93315334,0.00014637,2]
[329776479,1718663433136,-298.58336678,0.00015,2]
[329776481,1718663433145,-1693.11395485,0.00015,2]
[329776483,1718663433155,-34738.77812561,0.00015,2]
[329776484,1718663433165,-2691.2530763,0.00015,2]
[329776487,1718663433176,-316.23475701,0.00015,2]
[329776491,1718663433206,-287.60021767,0.00015,2]
[329776731,1718663440955,-32192.65834175,0.00015,2]
[329776733,1718663440965,-24900.0,0.00015005,2]
[329776735,1718663440975,-405.53081117,0.000155,2]
[329776737,1718663440984,-489.77886636,0.000156,2]
[329776739,1718663440994,-405.53081113,0.00016052,2]
[329776741,1718663441003,-237.02244415,0.00016437,2]
[329776743,1718663441014,-500.0,0.00016438,2]
[329776745,1718663441023,-500.0,0.00016438,2]
[329776747,1718663441032,-500.0,0.00016438,2]
[329776749,1718663441041,-586.16,0.00016438,2]
[329776751,1718663441051,-500.0,0.00016438,2]
[329776753,1718663441060,-500.0,0.00016438,2]
[329776755,1718663441069,-500.0,0.00016438,2]
[329776757,1718663441079,-509.49331624,0.00016438,2]
[329776759,1718663441088,-250.0,0.00016438,2]
[329776761,1718663441098,-500.0,0.00016438,2]
[329776763,1718663441107,-525.45222054,0.00016438,2]
[329776765,1718663441117,-320.18843397,0.00016438,2]
[329776767,1718663441127,-500.0,0.00016438,2]
[329776769,1718663441136,-500.0,0.00016438,2]
[329776771,1718663441145,-500.0,0.00016438,2]
[329776773,1718663441154,-505.75721366,0.00016438,2]
[329776775,1718663441165,-500.0,0.00016438,2]
[329776777,1718663441174,-500.0,0.00016438,2]
[329776779,1718663441183,-500.0,0.00016438,2]
[329776781,1718663441192,-500.0,0.00016438,2]
[329776783,1718663441202,-500.0,0.00016438,2]
[329776785,1718663441212,-500.0,0.00016438,2]
[329776787,1718663441221,-500.0,0.00016438,2]
[329776789,1718663441231,-500.0,0.00016438,2]
[329776791,1718663441240,-500.0,0.00016438,2]
[329776793,1718663441249,-500.0,0.00016438,2]
[329776795,1718663441258,-500.0,0.00016438,2]
[329776797,1718663441268,-500.0,0.00016438,2]
[329776799,1718663441278,-500.0,0.00016438,2]
[329776801,1718663441287,-511.25249507,0.00016438,2]
[329776803,1718663441297,-500.0,0.00016438,2]
[329776805,1718663441306,-500.0,0.00016438,2]
[329776807,1718663441315,-500.0,0.00016438,2]
[329776809,1718663441325,-412.40902653,0.00016438,2]
[329776811,1718663441335,-500.0,0.00016438,2]
[329776813,1718663441345,-500.0,0.00016438,2]
[329776815,1718663441353,-500.0,0.00016438,2]
[329776817,1718663441362,-500.0,0.00016438,2]
[329776819,1718663441372,-500.0,0.00016438,2]
[329776821,1718663441382,-500.0,0.00016438,2]
[329776823,1718663441391,-1451.17,0.00016438,2]
[329776825,1718663441401,-500.0,0.00016438,2]
[329776827,1718663441410,-284.31371648,0.00016438,2]
[329776829,1718663441421,-500.0,0.00016438,2]
[329776831,1718663441431,-500.0,0.00016438,2]
[329776833,1718663441441,-500.0,0.00016438,2]
[329776835,1718663441451,-406.40170903,0.00016438,2]
[329776837,1718663441461,-500.0,0.00016438,2]
[329776839,1718663441470,-500.0,0.00016438,2]
[329776841,1718663441479,-500.0,0.00016438,2]
[329776843,1718663441489,-500.0,0.00016438,2]
[329776845,1718663441498,-500.0,0.00016438,2]
[329776847,1718663441507,-500.0,0.00016438,2]
[329776849,1718663441517,-196.82917745,0.00016438,2]
[329776851,1718663441527,-500.0,0.00016438,2]
[329776853,1718663441537,-500.0,0.00016438,2]
[329776855,1718663441547,-1682.07,0.00016438,2]
[329776858,1718663441558,-500.0,0.00016438,2]
[329776860,1718663441568,-500.0,0.00016438,2]
[329776862,1718663441578,-500.0,0.00016438,2]
[329776864,1718663441588,-982.0,0.00016438,2]
[329776866,1718663441599,-500.0,0.00016438,2]
[329776868,1718663441608,-500.0,0.00016438,2]
[329776870,1718663441618,-500.0,0.00016438,2]
[329776872,1718663441628,-500.0,0.00016438,2]
[329776874,1718663441637,-1231.97,0.00016438,2]
[329776876,1718663441647,-500.0,0.00016438,2]
[329776879,1718663441657,-505.55114002,0.00016438,2]
[329776882,1718663441667,-1102.32,0.00016438,2]
[329776884,1718663441676,-543.51,0.00016438,2]
[329776886,1718663441686,-500.0,0.00016438,2]
[329776889,1718663441695,-500.0,0.00016438,2]
[329776891,1718663441705,-570.04,0.00016438,2]
[329776893,1718663441714,-500.0,0.00016438,2]
[329776895,1718663441725,-1498.43,0.00016438,2]
[329776897,1718663441735,-391.22740072,0.00016438,2]
[329776899,1718663441744,-1198.36,0.00016438,2]
[329776901,1718663441759,-500.0,0.00016438,2]
[329776903,1718663441769,-500.0,0.00016438,2]
[329776905,1718663441779,-1141.67,0.00016438,2]
[329776907,1718663441789,-500.0,0.00016438,2]
[329776909,1718663441799,-500.0,0.00016438,2]
[329776911,1718663441809,-500.0,0.00016438,2]
[329776913,1718663441818,-500.0,0.00016438,2]
[329776915,1718663441830,-500.0,0.00016438,2]
[329776917,1718663441849,-500.0,0.00016438,2]
[329776919,1718663441859,-500.0,0.00016438,2]
[329776921,1718663441869,-2382.7,0.00016438,2]
[329776923,1718663441878,-500.0,0.00016438,2]
[329776925,1718663441888,-500.0,0.00016438,2]
[329776927,1718663441897,-559.81,0.00016438,2]
[329776929,1718663441907,-500.0,0.00016438,2]
[329776931,1718663441916,-500.0,0.00016438,2]
[329776933,1718663441926,-361.51694255,0.00016438,2]
[329776935,1718663441935,-500.0,0.00016438,2]
[329776937,1718663441945,-500.0,0.00016438,2]
[329776938,1718663441954,-500.0,0.00016535,2]
[329776941,1718663441964,-405.53081113,0.00016604,2]
[329776942,1718663441973,-277.28260421,0.00016711,2]
[329776945,1718663441983,-500.0,0.00016712,2]
[329776947,1718663441992,-586.16,0.00016712,2]
[329776948,1718663442002,-181.18,0.00016712,2]
[329776951,1718663442011,-500.0,0.00016712,2]
[329776952,1718663442020,-291.68716819,0.00016712,2]
[329776954,1718663442030,-481.55375942,0.00016712,2]
[329776955,1718663442039,-500.0,0.00016712,2]
[329776956,1718663442049,-500.0,0.00016712,2]
[329776957,1718663442058,-500.0,0.00016712,2]
[329776958,1718663442067,-500.0,0.00016712,2]
[329776959,1718663442076,-500.0,0.00016712,2]
[329776960,1718663442086,-500.0,0.00016712,2]
[329776961,1718663442096,-500.0,0.00016712,2]
[329776962,1718663442106,-1451.17,0.00016712,2]
[329776963,1718663442115,-330.67433757,0.00016712,2]
[329776964,1718663442125,-500.0,0.00016712,2]
[329776965,1718663442134,-500.0,0.00016712,2]
[329776966,1718663442144,-500.0,0.00016712,2]
[329776967,1718663442153,-500.0,0.00016712,2]
[329776968,1718663442164,-366.19444273,0.00016712,2]
[329777043,1718663442996,-133.80555727,0.00016712,2]
[329777045,1718663443005,-440.00814275,0.00016712,2]
[329777047,1718663443017,-59.99185725,0.00016712,2]
[329777049,1718663443027,-500.0,0.00016712,2]
[329777050,1718663443036,-500.0,0.00016712,2]
[329777051,1718663443045,-500.0,0.00016712,2]
[329777052,1718663443055,-500.0,0.00016712,2]
[329777053,1718663443064,-500.0,0.00016712,2]
[329777055,1718663443074,-1682.07,0.00016712,2]
[329777057,1718663443083,-363.72337556,0.00016712,2]
[329777059,1718663443093,-500.0,0.00016712,2]
[329777061,1718663443102,-500.0,0.00016712,2]
[329777063,1718663443112,-982.0,0.00016712,2]
[329777065,1718663443122,-500.0,0.00016712,2]
[329777067,1718663443131,-500.0,0.00016712,2]
[329777069,1718663443140,-500.0,0.00016712,2]
[329777071,1718663443150,-1231.97,0.00016712,2]
[329777073,1718663443161,-500.0,0.00016712,2]
[329777075,1718663443170,-1102.32,0.00016712,2]
[329777078,1718663443179,-543.51,0.00016712,2]
[329777079,1718663443188,-500.0,0.00016712,2]
[329777081,1718663443198,-500.0,0.00016712,2]
[329777083,1718663443207,-570.04,0.00016712,2]
[329777085,1718663443216,-500.0,0.00016712,2]
[329777087,1718663443225,-1498.43,0.00016712,2]
[329777089,1718663443235,-1198.36,0.00016712,2]
[329777091,1718663443244,-299.74606996,0.00016712,2]
[329777093,1718663443254,-500.0,0.00016712,2]
[329777095,1718663443263,-1141.67,0.00016712,2]
[329777097,1718663443273,-500.0,0.00016712,2]
[329777099,1718663443282,-500.0,0.00016712,2]
[329777101,1718663443292,-500.0,0.00016712,2]
[329777103,1718663443301,-500.0,0.00016712,2]
[329777105,1718663443311,-500.0,0.00016712,2]
[329777107,1718663443320,-500.0,0.00016712,2]
[329777109,1718663443330,-1067.51008989,0.00016712,2]
[329777236,1718663444524,-500.0,0.00016438,2]
[329777238,1718663444534,-338.69943757,0.00016712,2]
[329777267,1718663444799,-976.49047254,0.00016712,2]
[329777269,1718663444809,-500.0,0.00016712,2]
[329777271,1718663444819,-500.0,0.00016712,2]
[329777273,1718663444830,-559.81,0.00016712,2]
[329777275,1718663444842,-500.0,0.00016712,2]
[329777277,1718663444853,-500.0,0.00016712,2]
[329777279,1718663444862,-500.0,0.00016712,2]
[329777281,1718663444872,-539.87519389,0.00016712,2]